[Event "Netanya Open 2019"]
[Site "Netanya"]
[Date "2019.06.30"]
[Round "7.18"]
[White "Gorshtein, Ido"]
[Black "Bilych, Olexiy"]
[Result "1-0"]
[ECO "C77"]
[WhiteElo "2367"]
[BlackElo "2203"]
[Annotator "NA"]
[PlyCount "87"]
[EventDate "2019.06.23"]
[EventType "swiss"]
[EventCountry "ISR"]
[SourceTitle "playchess.com"]
[Source "ChessBase"]
[SourceQuality "1"]
[TimeControl "40/5400+30:1800+30"]

1. e4 {[%emt 0:00:00]} e5 {[%emt 0:00:00]} 2. Nf3 {[%emt 0:00:00]} Nc6 {[%emt 0:00:00]} 3. Bb5 {[%emt 0:00:00]} a6 {[%emt 0:00:00]} 4. Ba4 {[%emt 0:00:00]} Nf6 {[%emt 0:00:00]} 5. Nc3 {[%emt 0:01:01]} Be7 {[%emt 0:00:00]} 6. d3 {[%emt 0:04:05]} b5 {[%emt 0:00:09]} 7. Bb3 {[%emt 0:00:07]} d6 {[%emt 0:00:30]} 8. a3 {[%emt 0:00:30]} O-O {[%emt 0:00:30]} 9. O-O {[%emt 0:00:30]} Na5 {[%emt 0:00:30]} 10. Ba2 {[%emt 0:00:30]} Be6 {[%emt 0:00:30]} 11. b4 {[%emt 0:00:30]} Bxa2 {[%emt 0:00:30]} 12. Rxa2 {[%emt 0:00:30]} Nc6 {[%emt 0:00:30]} 13. Nd5 {[%emt 0:00:30]} Nxd5 {[%emt 0:00:30]} 14. exd5 {[%emt 0:00:30]} Nb8 {[%emt 0:00:00]} 15. a4 {[%emt 0:02:20]} Nd7 {[%emt 0:00:24]} 16. c4 {[%emt 0:00:30]} f5 {[%emt 0:00:30]} 17. Re1 {[%emt 0:00:30]} g5 {[%emt 0:03:28]} 18. h3 {[%emt 0:16:25]} h6 {[%emt 0:08:56]} 19. axb5 {[%emt 0:03:37]} axb5 {[%emt 0:01:08]} 20. Rxa8 {[%emt 0:00:09]} Qxa8 {[%emt 0:00:02]} 21. Nd4 {[%emt 0:01:30]} exd4 {[%emt 0:09:14]} 22. Rxe7 {[%emt 0:00:42]} Re8 {[%emt 0:00:16]} 23. Re6 {[%emt 0:24:22]} Rxe6 {[%emt 0:10:38]} 24. dxe6 {[%emt 0:00:02]} Nf6 {[%emt 0:08:03]} 25. Bb2 {[%emt 0:01:20]} c5 {[%emt 0:09:04]} 26. Qc2 {[%emt 0:09:37]} bxc4 {[%emt 0:11:28]} 27. bxc5 {[%emt 0:11:11]} dxc5 {[%emt 0:01:23]} 28. Qxc4 {[%emt 0:01:51]} Qd5 {[%emt 0:03:39]} 29. Qa6 {[%emt 0:01:01]} f4 {[%emt 0:10:06]} 30. e7 {[%emt 0:01:33]} Kf7 {[%emt 0:05:59]} 31. Qxf6+ {[%emt 0:00:13]} Kxf6 {[%emt 0:00:02]} 32. e8=Q {[%emt 0:00:11]} Qb3 {[%emt 0:02:55]} 33. Qe2 {[%emt 0:00:17]} h5 {[%emt 0:02:17]} 34. Qd2 {[%emt 0:01:15]} Kf7 {[%emt 0:02:04]} 35. Kh2 {[%emt 0:02:17]} h4 {[%emt 0:01:57]} 36. Qc1 {[%emt 0:02:48]} Ke6 {[%emt 0:06:32]} 37. Qc4+ {[%emt 0:04:06]} Qxc4 {[%emt 0:00:03]} 38. dxc4 {[%emt 0:00:04]} Ke5 {[%emt 0:03:39]} 39. f3 {[%emt 0:00:22]} Kd6 {[%emt 0:00:06]} 40. Kg1 {[%emt 0:00:19]} Kc6 {[%emt 0:00:06]} 41. Kf2 {[%emt 0:30:13]} Kb6 {[%emt 0:30:23]} 42. Ke2 {[%emt 0:00:07]} Ka5 {[%emt 0:00:25]} 43. Kd3 {[%emt 0:00:03]} Kb4 {[%emt 0:00:08]} 44. Bxd4 {[%emt 0:00:03]} 1-0

[Event "Netanya Open 2019"]
[Site "Netanya"]
[Date "2019.06.30"]
[Round "7.19"]
[White "Kogan, Arthur"]
[Black "Alexikov, Alexander"]
[Result "1-0"]
[ECO "B07"]
[WhiteElo "2535"]
[BlackElo "2234"]
[Annotator "ChessBase"]
[PlyCount "109"]
[EventDate "2019.06.23"]
[EventType "swiss"]
[EventCountry "ISR"]
[SourceTitle "playchess.com"]
[Source "ChessBase"]
[SourceQuality "1"]
[TimeControl "40/5400+30:1800+30"]

1. e4 {[%emt 0:00:00]} d6 {[%emt 0:01:01]} 2. d4 {[%emt 0:00:00]} g6 {[%emt 0:00:12]} 3. Nc3 {[%emt 0:00:01]} Bg7 {[%emt 0:00:07]} 4. Bg5 {[%emt 0:00:34]} Nf6 {[%emt 0:05:59]} 5. Qd2 {[%emt 0:00:22]} h6 {[%emt 0:07:31]} 6. Bf4 {[%emt 0:00:12]} g5 {[%emt 0:00:07]} 7. Bg3 {[%emt 0:00:05]} Nh5 {[%emt 0:00:05]} 8. O-O-O {[%emt 0:00:12]} Nc6 {[%emt 0:11:38]} 9. Bb5 {[%emt 0:00:08]} a6 {[%emt 0:06:49]} 10. Bxc6+ {[%emt 0:00:45]} bxc6 {[%emt 0:00:01]} 11. Nge2 {[%emt 0:00:12]} Bd7 {[%emt 0:08:21]} 12. h4 {[%emt 0:02:52]} Nxg3 {[%emt 0:01:01]} 13. Nxg3 {[%emt 0:00:23]} g4 {[%emt 0:00:23]} 14. Nh5 {[%emt 0:01:06]} Bf8 {[%emt 0:00:11]} 15. e5 {[%emt 0:09:43]} Qb8 {[%emt 0:11:28]} 16. Rhe1 {[%emt 0:03:25]} Qb7 {[%emt 0:00:47]} 17. Qf4 {[%emt 0:09:19]} Be6 {[%emt 0:03:01]} 18. exd6 {[%emt 0:01:06]} cxd6 {[%emt 0:00:11]} 19. d5 {[%emt 0:00:37]} cxd5 {[%emt 0:01:16]} 20. Nxd5 {[%emt 0:00:28]} Kd8 {[%emt 0:05:59]} 21. c4 {[%emt 0:22:38]} Rc8 {[%emt 0:04:23]} 22. Kb1 {[%emt 0:00:46]} a5 {[%emt 0:08:57]} 23. Re3 {[%emt 0:05:17]} Rc5 {[%emt 0:06:30]} 24. Qd4 {[%emt 0:06:13]} Rg8 {[%emt 0:02:01]} 25. Nxe7 {[%emt 0:01:47]} Bxe7 {[%emt 0:09:38]} 26. Qxc5 {[%emt 0:00:43]} Qc7 {[%emt 0:00:52]} 27. Qxc7+ {[%emt 0:03:27]} Kxc7 {[%emt 0:00:01]} 28. g3 {[%emt 0:00:15]} Kc6 {[%emt 0:01:10]} 29. Kc1 {[%emt 0:03:19]} Rb8 {[%emt 0:03:19]} 30. Nf4 {[%emt 0:03:38]} Bf6 {[%emt 0:00:07]} 31. Nxe6 {[%emt 0:00:27]} fxe6 {[%emt 0:00:08]} 32. b3 {[%emt 0:01:17]} Be5 {[%emt 0:01:14]} 33. h5 {[%emt 0:10:30]} Rg8 {[%emt 0:01:12]} 34. Re4 {[%emt 0:02:42]} Rg5 {[%emt 0:00:25]} 35. Rde1 {[%emt 0:00:32]} Kc5 {[%emt 0:00:20]} 36. Kc2 {[%emt 0:02:37]} Kc6 {[%emt 0:00:43]} 37. a3 {[%emt 0:00:29]} Kc5 {[%emt 0:00:27]} 38. R1e2 {[%emt 0:04:29]} Rf5 {[%emt 0:00:53]} 39. Rxg4 {[%emt 0:04:31]} Rf3 {[%emt 0:00:01]} 40. Re3 {[%emt 0:02:01]} Rxf2+ {[%emt 0:00:09]} 41. Kd3 {[%emt 0:30:11]} Rb2 {[%emt 0:17:26]} 42. Rxe5+ {[%emt 0:00:00]} dxe5 {[%emt 0:00:06]} 43. Kc3 {[%emt 0:00:00]} Rf2 {[%emt 0:02:27]} 44. b4+ {[%emt 0:00:00]} axb4+ {[%emt 0:00:18]} 45. axb4+ {[%emt 0:00:00]} Kd6 {[%emt 0:00:03]} 46. Rg6 {[%emt 0:00:00]} Rf5 {[%emt 0:07:45]} 47. Kd3 {[%emt 0:00:00]} Rf1 {[%emt 0:05:57]} 48. Ke2 {[%emt 0:00:00]} Rb1 {[%emt 0:00:16]} 49. b5 {[%emt 0:00:00]} Rb3 {[%emt 0:00:39]} 50. g4 {[%emt 0:01:15]} Rc3 {[%emt 0:00:42]} 51. Rxh6 {[%emt 0:00:36]} Rxc4 {[%emt 0:00:10]} 52. g5 {[%emt 0:00:58]} Rg4 {[%emt 0:00:31]} 53. g6 {[%emt 0:01:25]} Ke7 {[%emt 0:00:52]} 54. Rh7+ {[%emt 0:00:13]} Kf6 {[%emt 0:00:00]} 55. b6 {[%emt 0:03:44]} 1-0

[Event "Netanya Open 2019"]
[Site "Netanya"]
[Date "2019.06.30"]
[Round "7.20"]
[White "Axelrod, Arie"]
[Black "Shubin, Kirill"]
[Result "0-1"]
[ECO "C02"]
[WhiteElo "2227"]
[BlackElo "2426"]
[Annotator "NA"]
[PlyCount "88"]
[EventDate "2019.06.23"]
[EventType "swiss"]
[EventCountry "ISR"]
[SourceTitle "playchess.com"]
[Source "ChessBase"]
[SourceQuality "1"]
[TimeControl "40/5400+30:1800+30"]

1. e4 {[%emt 0:00:00]} e6 {[%emt 0:00:00]} 2. d4 {[%emt 0:00:01]} d5 {[%emt 0:00:00]} 3. e5 {[%emt 0:00:06]} c5 {[%emt 0:00:00]} 4. c3 {[%emt 0:00:11]} Ne7 {[%emt 0:00:00]} 5. Bd3 {[%emt 0:01:02]} Nec6 {[%emt 0:00:13]} 6. Nf3 {[%emt 0:00:58]} b6 {[%emt 0:00:38]} 7. a3 {[%emt 0:02:35]} Ba6 {[%emt 0:01:30]} 8. Bc2 {[%emt 0:00:08]} Nd7 {[%emt 0:04:09]} 9. b4 {[%emt 0:02:19]} Rc8 {[%emt 0:02:37]} 10. Ba4 {[%emt 0:01:18]} Bc4 {[%emt 0:05:44]} 11. Nbd2 {[%emt 0:00:52]} Bd3 {[%emt 0:00:08]} 12. Nf1 {[%emt 0:01:06]} Bxf1 {[%emt 0:03:18]} 13. Kxf1 {[%emt 0:00:27]} Be7 {[%emt 0:00:07]} 14. g3 {[%emt 0:01:12]} O-O {[%emt 0:00:17]} 15. Kg2 {[%emt 0:00:05]} f6 {[%emt 0:05:14]} 16. exf6 {[%emt 0:00:56]} Rxf6 {[%emt 0:00:34]} 17. Re1 {[%emt 0:01:44]} Qf8 {[%emt 0:01:31]} 18. Ra2 {[%emt 0:00:27]} h6 {[%emt 0:04:59]} 19. Ne5 {[%emt 0:07:06]} Ndxe5 {[%emt 0:00:45]} 20. dxe5 {[%emt 0:00:03]} Rf7 {[%emt 0:00:31]} 21. Qd3 {[%emt 0:02:08]} cxb4 {[%emt 0:03:07]} 22. axb4 {[%emt 0:01:32]} Bxb4 {[%emt 0:03:53]} 23. f4 {[%emt 0:15:17]} Bxc3 {[%emt 0:04:04]} 24. Qxc3 {[%emt 0:01:33]} Nb4 {[%emt 0:00:43]} 25. Qb3 {[%emt 0:00:47]} Nxa2 {[%emt 0:00:22]} 26. Qxa2 {[%emt 0:01:03]} Qb4 {[%emt 0:01:14]} 27. Bd2 {[%emt 0:03:39]} Qd4 {[%emt 0:00:06]} 28. Bb3 {[%emt 0:11:15]} Rfc7 {[%emt 0:00:59]} 29. Re2 {[%emt 0:03:36]} a5 {[%emt 0:02:52]} 30. Be1 {[%emt 0:02:45]} Qd3 {[%emt 0:01:55]} 31. Bf2 {[%emt 0:01:36]} Rc1 {[%emt 0:07:54]} 32. Bxb6 {[%emt 0:23:01]} Rb8 {[%emt 0:01:30]} 33. Bxd5 {[%emt 0:05:57]} exd5 {[%emt 0:01:58]} 34. e6 {[%emt 0:01:42]} Ra1 {[%emt 0:01:31]} 35. Qc2 {[%emt 0:01:17]} Qxc2 {[%emt 0:02:06]} 36. Rxc2 {[%emt 0:00:02]} Re1 {[%emt 0:00:34]} 37. Rc6 {[%emt 0:01:43]} Re8 {[%emt 0:01:46]} 38. f5 {[%emt 0:01:21]} g6 {[%emt 0:01:34]} 39. g4 {[%emt 0:01:05]} gxf5 {[%emt 0:00:12]} 40. gxf5 {[%emt 0:00:02]} Re5 {[%emt 0:00:10]} 41. Bxa5 {[%emt 0:33:31]} Rxf5 {[%emt 0:30:23]} 42. Rd6 {[%emt 0:00:00]} Re5 {[%emt 0:00:00]} 43. Bc3 {[%emt 0:00:00]} Re2+ {[%emt 0:00:00]} 44. Kh1 {[%emt 0:00:00]} Rc8 {[%emt 0:00:00]} 0-1

[Event "Netanya Open 2019"]
[Site "Netanya"]
[Date "2019.06.30"]
[Round "7.21"]
[White "Musyuk, Lior"]
[Black "Shvayger, Yuliya"]
[Result "1-0"]
[ECO "C11"]
[WhiteElo "2190"]
[BlackElo "2361"]
[Annotator "NA"]
[PlyCount "67"]
[EventDate "2019.06.23"]
[EventType "swiss"]
[EventCountry "ISR"]
[SourceTitle "playchess.com"]
[Source "ChessBase"]
[SourceQuality "1"]
[TimeControl "40/5400+30:1800+30"]

1. e4 {[%emt 0:00:00]} e6 {[%emt 0:00:07]} 2. d4 {[%emt 0:00:00]} d5 {[%emt 0:00:08]} 3. Nc3 {[%emt 0:00:11]} Nf6 {[%emt 0:00:08]} 4. e5 {[%emt 0:00:29]} Nfd7 {[%emt 0:02:39]} 5. f4 {[%emt 0:00:14]} c5 {[%emt 0:00:08]} 6. Nf3 {[%emt 0:00:13]} Nc6 {[%emt 0:00:16]} 7. Be3 {[%emt 0:00:31]} a6 {[%emt 0:00:12]} 8. Qd2 {[%emt 0:00:49]} b5 {[%emt 0:00:39]} 9. a3 {[%emt 0:00:26]} Qa5 {[%emt 0:00:45]} 10. Rb1 {[%emt 0:27:25]} Rb8 {[%emt 0:03:25]} 11. Bd3 {[%emt 0:10:06]} b4 {[%emt 0:07:38]} 12. axb4 {[%emt 0:00:37]} Rxb4 {[%emt 0:00:46]} 13. Ne2 {[%emt 0:01:20]} Be7 {[%emt 0:18:04]} 14. c3 {[%emt 0:01:49]} Rb8 {[%emt 0:00:07]} 15. O-O {[%emt 0:03:21]} O-O {[%emt 0:00:43]} 16. f5 {[%emt 0:06:59]} exf5 {[%emt 0:06:22]} 17. Bxf5 {[%emt 0:06:01]} Nb6 {[%emt 0:04:38]} 18. Bd3 {[%emt 0:00:51]} cxd4 {[%emt 0:10:10]} 19. Nexd4 {[%emt 0:07:54]} Nxd4 {[%emt 0:00:23]} 20. Nxd4 {[%emt 0:05:11]} Qa4 {[%emt 0:00:07]} 21. Bg5 {[%emt 0:07:10]} Nc4 {[%emt 0:05:22]} 22. Qf4 {[%emt 0:05:16]} Bxg5 {[%emt 0:01:03]} 23. Qxg5 {[%emt 0:00:03]} Qe8 {[%emt 0:13:31]} 24. Rbe1 {[%emt 0:01:24]} Rxb2 {[%emt 0:01:07]} 25. Rf6 {[%emt 0:03:09]} Nd2 {[%emt 0:03:58]} 26. e6 {[%emt 0:06:42]} fxe6 {[%emt 0:08:55]} 27. Nxe6 {[%emt 0:04:09]} Bxe6 {[%emt 0:01:07]} 28. Rexe6 {[%emt 0:00:08]} Qxe6 {[%emt 0:00:38]} 29. Bxh7+ {[%emt 0:01:06]} Kh8 {[%emt 0:04:12]} 30. Rxf8+ {[%emt 0:00:05]} Kxh7 {[%emt 0:00:03]} 31. Qh5+ {[%emt 0:00:07]} Qh6 {[%emt 0:00:04]} 32. Qf5+ {[%emt 0:00:02]} g6 {[%emt 0:01:57]} 33. Qd7+ {[%emt 0:00:13]} Qg7 {[%emt 0:00:08]} 34. Qh3+ {[%emt 0:00:02]} 1-0

[Event "Netanya Open 2019"]
[Site "Netanya"]
[Date "2019.06.30"]
[Round "7.22"]
[White "Emanuel, Yahav"]
[Black "Parligras, Cosmin"]
[Result "1/2-1/2"]
[ECO "C95"]
[WhiteElo "2359"]
[BlackElo "2198"]
[Annotator "NA"]
[PlyCount "44"]
[EventDate "2019.06.23"]
[EventType "swiss"]
[EventCountry "ISR"]
[SourceTitle "playchess.com"]
[Source "ChessBase"]
[SourceQuality "1"]
[TimeControl "40/5400+30:1800+30"]

1. e4 {[%emt 0:06:15]} e5 {[%emt 0:00:00]} 2. Nf3 {[%emt 0:00:08]} Nc6 {[%emt 0:00:00]} 3. Bb5 {[%emt 0:00:08]} a6 {[%emt 0:00:00]} 4. Ba4 {[%emt 0:00:09]} Nf6 {[%emt 0:00:00]} 5. O-O {[%emt 0:00:17]} Be7 {[%emt 0:01:36]} 6. Re1 {[%emt 0:00:11]} b5 {[%emt 0:00:07]} 7. Bb3 {[%emt 0:00:08]} d6 {[%emt 0:00:21]} 8. c3 {[%emt 0:00:07]} O-O {[%emt 0:00:09]} 9. h3 {[%emt 0:00:12]} Nb8 {[%emt 0:00:21]} 10. d4 {[%emt 0:03:12]} Nbd7 {[%emt 0:00:17]} 11. c4 {[%emt 0:00:44]} Bb7 {[%emt 0:10:30]} 12. Nc3 {[%emt 0:03:15]} c6 {[%emt 0:08:04]} 13. c5 {[%emt 0:10:51]} Qc7 {[%emt 0:04:46]} 14. cxd6 {[%emt 0:00:23]} Bxd6 {[%emt 0:00:08]} 15. Bg5 {[%emt 0:01:01]} exd4 {[%emt 0:06:46]} 16. Qxd4 {[%emt 0:15:40]} c5 {[%emt 0:10:43]} 17. Qd2 {[%emt 0:11:19]} c4 {[%emt 0:00:58]} 18. Rad1 {[%emt 0:08:56]} cxb3 {[%emt 0:04:13]} 19. Qxd6 {[%emt 0:00:49]} Qxd6 {[%emt 0:00:05]} 20. Rxd6 {[%emt 0:00:10]} b4 {[%emt 0:01:25]} 21. Na4 {[%emt 0:18:59]} bxa2 {[%emt 0:03:32]} 22. Ra1 {[%emt 0:02:55]} Bxe4 {[%emt 0:06:44]} 1/2-1/2

[Event "Netanya Open 2019"]
[Site "Netanya"]
[Date "2019.06.30"]
[Round "7.23"]
[White "Lahav, Michal"]
[Black "Iliaguev, Nisim"]
[Result "1-0"]
[ECO "B06"]
[WhiteElo "2178"]
[BlackElo "2357"]
[Annotator "NA"]
[PlyCount "79"]
[EventDate "2019.06.23"]
[EventType "swiss"]
[EventCountry "ISR"]
[SourceTitle "playchess.com"]
[Source "ChessBase"]
[SourceQuality "1"]
[TimeControl "40/5400+30:1800+30"]

1. e4 {[%emt 0:00:00]} c5 {[%emt 0:00:00]} 2. Nf3 {[%emt 0:00:00]} g6 {[%emt 0:00:00]} 3. c3 {[%emt 0:00:00]} d5 {[%emt 0:00:07]} 4. exd5 {[%emt 0:00:08]} Qxd5 {[%emt 0:00:06]} 5. d4 {[%emt 0:00:13]} Bg7 {[%emt 0:00:11]} 6. Nbd2 {[%emt 0:00:57]} cxd4 {[%emt 0:02:15]} 7. Bc4 {[%emt 0:00:09]} Qd8 {[%emt 0:00:41]} 8. Nxd4 {[%emt 0:00:11]} Nf6 {[%emt 0:00:39]} 9. O-O {[%emt 0:00:25]} O-O {[%emt 0:00:11]} 10. N2f3 {[%emt 0:00:57]} a6 {[%emt 0:03:10]} 11. Re1 {[%emt 0:08:35]} b5 {[%emt 0:09:21]} 12. Bb3 {[%emt 0:00:06]} Bb7 {[%emt 0:00:19]} 13. Qe2 {[%emt 0:00:19]} e6 {[%emt 0:10:42]} 14. Bg5 {[%emt 0:07:45]} h6 {[%emt 0:00:59]} 15. Bh4 {[%emt 0:00:14]} g5 {[%emt 0:00:29]} 16. Bg3 {[%emt 0:01:50]} Qb6 {[%emt 0:06:22]} 17. Rad1 {[%emt 0:05:33]} Nc6 {[%emt 0:01:08]} 18. h4 {[%emt 0:12:11]} Ne4 {[%emt 0:04:33]} 19. Bh2 {[%emt 0:15:49]} Nxd4 {[%emt 0:01:47]} 20. Nxd4 {[%emt 0:00:03]} Kh8 {[%emt 0:13:19]} 21. hxg5 {[%emt 0:01:35]} Nxg5 {[%emt 0:00:18]} 22. Qh5 {[%emt 0:01:40]} Qc5 {[%emt 0:03:44]} 23. Qh4 {[%emt 0:15:23]} Rg8 {[%emt 0:03:04]} 24. Bc2 {[%emt 0:01:40]} Qf8 {[%emt 0:09:38]} 25. Kf1 {[%emt 0:10:53]} Bf6 {[%emt 0:01:55]} 26. Qh5 {[%emt 0:02:45]} Qg7 {[%emt 0:04:53]} 27. Bg3 {[%emt 0:00:01]} Rad8 {[%emt 0:00:28]} 28. Nb3 {[%emt 0:04:50]} Rxd1 {[%emt 0:00:24]} 29. Rxd1 {[%emt 0:00:19]} Ne4 {[%emt 0:02:30]} 30. Bxe4 {[%emt 0:00:05]} Bxe4 {[%emt 0:00:05]} 31. Rd7 {[%emt 0:04:17]} Bg6 {[%emt 0:02:54]} 32. Qf3 {[%emt 0:00:03]} h5 {[%emt 0:00:55]} 33. Nc5 {[%emt 0:00:15]} Re8 {[%emt 0:05:39]} 34. Nxa6 {[%emt 0:00:02]} h4 {[%emt 0:08:04]} 35. Nc7 {[%emt 0:00:22]} Re7 {[%emt 0:01:10]} 36. Be5 {[%emt 0:01:56]} Bxe5 {[%emt 0:00:05]} 37. Rxe7 {[%emt 0:00:06]} Qh6 {[%emt 0:00:57]} 38. Qe3 {[%emt 0:00:57]} Qh5 {[%emt 0:00:20]} 39. Ke1 {[%emt 0:02:53]} Qf5 {[%emt 0:00:54]} 40. Qh6+ {[%emt 0:00:11]} 1-0

[Event "Netanya Open 2019"]
[Site "Netanya"]
[Date "2019.06.30"]
[Round "7.24"]
[White "Streltsov, Alexey"]
[Black "Parkhov, Yair"]
[Result "0-1"]
[ECO "B51"]
[WhiteElo "2177"]
[BlackElo "2354"]
[Annotator "NA"]
[PlyCount "112"]
[EventDate "2019.06.23"]
[EventType "swiss"]
[EventCountry "ISR"]
[SourceTitle "playchess.com"]
[Source "ChessBase"]
[SourceQuality "1"]
[TimeControl "40/5400+30:1800+30"]

1. e4 {[%emt 0:00:00]} c5 {[%emt 0:00:00]} 2. Nf3 {[%emt 0:00:00]} d6 {[%emt 0:00:00]} 3. Bb5+ {[%emt 0:00:00]} Nd7 {[%emt 0:00:00]} 4. c4 {[%emt 0:00:03]} Ngf6 {[%emt 0:01:26]} 5. Nc3 {[%emt 0:00:08]} g6 {[%emt 0:05:50]} 6. d3 {[%emt 0:00:20]} Bg7 {[%emt 0:00:18]} 7. O-O {[%emt 0:00:09]} O-O {[%emt 0:00:08]} 8. Ba4 {[%emt 0:00:12]} b6 {[%emt 0:16:03]} 9. h3 {[%emt 0:00:45]} Bb7 {[%emt 0:00:41]} 10. Rb1 {[%emt 0:03:38]} e6 {[%emt 0:16:46]} 11. Bf4 {[%emt 0:04:39]} Qe7 {[%emt 0:05:59]} 12. Qd2 {[%emt 0:03:42]} Nh5 {[%emt 0:05:07]} 13. Bg5 {[%emt 0:23:55]} f6 {[%emt 0:00:29]} 14. Bh6 {[%emt 0:00:06]} f5 {[%emt 0:14:58]} 15. Nh2 {[%emt 0:12:41]} Bxh6 {[%emt 0:03:48]} 16. Qxh6 {[%emt 0:00:06]} f4 {[%emt 0:00:14]} 17. Bxd7 {[%emt 0:07:07]} Qxd7 {[%emt 0:00:08]} 18. Qg5 {[%emt 0:00:04]} e5 {[%emt 0:07:31]} 19. Qg4 {[%emt 0:08:25]} Qf7 {[%emt 0:01:06]} 20. Nb5 {[%emt 0:01:27]} Qe7 {[%emt 0:02:00]} 21. Qf3 {[%emt 0:14:43]} Ng7 {[%emt 0:00:42]} 22. Qd1 {[%emt 0:03:49]} Ne6 {[%emt 0:00:27]} 23. f3 {[%emt 0:00:12]} Bc6 {[%emt 0:00:51]} 24. Nc3 {[%emt 0:00:45]} h5 {[%emt 0:01:16]} 25. a3 {[%emt 0:01:58]} Kh7 {[%emt 0:01:01]} 26. Qe1 {[%emt 0:03:30]} Nd4 {[%emt 0:04:48]} 27. Ne2 {[%emt 0:02:54]} Nc2 {[%emt 0:03:10]} 28. Qf2 {[%emt 0:00:08]} Ne3 {[%emt 0:00:30]} 29. Rfe1 {[%emt 0:01:33]} Bd7 {[%emt 0:01:25]} 30. Nf1 {[%emt 0:01:02]} Nxf1 {[%emt 0:00:13]} 31. Kxf1 {[%emt 0:00:17]} g5 {[%emt 0:01:29]} 32. Nc3 {[%emt 0:01:15]} g4 {[%emt 0:01:40]} 33. hxg4 {[%emt 0:00:03]} hxg4 {[%emt 0:00:07]} 34. Ke2 {[%emt 0:00:04]} g3 {[%emt 0:00:32]} 35. Rh1+ {[%emt 0:00:16]} Kg7 {[%emt 0:00:10]} 36. Qe1 {[%emt 0:00:24]} Rh8 {[%emt 0:00:25]} 37. Qd2 {[%emt 0:05:24]} Qg5 {[%emt 0:00:22]} 38. Rxh8 {[%emt 0:00:50]} Rxh8 {[%emt 0:00:03]} 39. Rg1 {[%emt 0:00:09]} Rh2 {[%emt 0:00:25]} 40. Kd1 {[%emt 0:02:10]} Qh5 {[%emt 0:01:51]} 41. Qe2 {[%emt 0:13:04]} Bh3 {[%emt 0:05:41]} 42. Ke1 {[%emt 0:00:09]} Bxg2 {[%emt 0:01:30]} 43. Rxg2 {[%emt 0:00:08]} Qh3 {[%emt 0:00:06]} 44. Rg1 {[%emt 0:06:01]} Rxe2+ {[%emt 0:00:07]} 45. Nxe2 {[%emt 0:00:02]} Qh2 {[%emt 0:00:19]} 46. Rf1 {[%emt 0:03:34]} Kf7 {[%emt 0:00:37]} 47. Kd2 {[%emt 0:01:03]} g2 {[%emt 0:00:39]} 48. Rd1 {[%emt 0:00:26]} Qh4 {[%emt 0:00:15]} 49. Kc3 {[%emt 0:04:27]} Qf2 {[%emt 0:00:22]} 50. Ng1 {[%emt 0:00:02]} Ke7 {[%emt 0:01:38]} 51. Rc1 {[%emt 0:01:24]} a6 {[%emt 0:00:09]} 52. a4 {[%emt 0:00:39]} Kf6 {[%emt 0:00:37]} 53. Rd1 {[%emt 0:00:05]} Kg6 {[%emt 0:00:06]} 54. a5 {[%emt 0:00:38]} bxa5 {[%emt 0:00:10]} 55. Kb3 {[%emt 0:00:42]} a4+ {[%emt 0:00:13]} 56. Kc3 {[%emt 0:00:09]} Kh5 {[%emt 0:00:08]} 0-1

[Event "Netanya Open 2019"]
[Site "Netanya"]
[Date "2019.06.30"]
[Round "7.25"]
[White "Globus, Or"]
[Black "Karp, Michael"]
[Result "1-0"]
[ECO "D78"]
[WhiteElo "2352"]
[BlackElo "2194"]
[Annotator "NA"]
[PlyCount "124"]
[EventDate "2019.06.23"]
[EventType "swiss"]
[EventCountry "ISR"]
[SourceTitle "playchess.com"]
[Source "ChessBase"]
[SourceQuality "1"]
[TimeControl "40/5400+30:1800+30"]

1. c4 {[%emt 0:00:00]} c6 {[%emt 0:00:55]} 2. Nf3 {[%emt 0:00:00]} Nf6 {[%emt 0:00:23]} 3. g3 {[%emt 0:00:00]} g6 {[%emt 0:03:16]} 4. Bg2 {[%emt 0:01:54]} Bg7 {[%emt 0:00:19]} 5. d4 {[%emt 0:01:32]} d5 {[%emt 0:02:34]} 6. O-O {[%emt 0:00:08]} O-O {[%emt 0:01:09]} 7. Qb3 {[%emt 0:00:02]} dxc4 {[%emt 0:11:45]} 8. Qxc4 {[%emt 0:00:09]} Be6 {[%emt 0:01:05]} 9. Qd3 {[%emt 0:06:59]} Bf5 {[%emt 0:06:36]} 10. Qb3 {[%emt 0:06:20]} Qb6 {[%emt 0:01:00]} 11. Nc3 {[%emt 0:01:13]} Na6 {[%emt 0:06:27]} 12. Qxb6 {[%emt 0:09:02]} axb6 {[%emt 0:00:09]} 13. Rd1 {[%emt 0:00:47]} Nb4 {[%emt 0:06:48]} 14. Ne1 {[%emt 0:03:28]} Be6 {[%emt 0:03:29]} 15. a3 {[%emt 0:04:41]} Bb3 {[%emt 0:01:36]} 16. Rd2 {[%emt 0:01:24]} Rfd8 {[%emt 0:09:28]} 17. Rb1 {[%emt 0:06:47]} Na6 {[%emt 0:04:56]} 18. e3 {[%emt 0:02:25]} Ne8 {[%emt 0:02:36]} 19. Nd3 {[%emt 0:02:02]} Nd6 {[%emt 0:00:51]} 20. Re2 {[%emt 0:02:17]} Bc4 {[%emt 0:05:39]} 21. Rd2 {[%emt 0:00:15]} Bb3 {[%emt 0:00:10]} 22. f4 {[%emt 0:04:01]} c5 {[%emt 0:06:02]} 23. Ne5 {[%emt 0:01:07]} cxd4 {[%emt 0:03:06]} 24. exd4 {[%emt 0:01:07]} f6 {[%emt 0:05:25]} 25. Nf3 {[%emt 0:01:57]} Nc7 {[%emt 0:02:42]} 26. d5 {[%emt 0:03:07]} Ndb5 {[%emt 0:03:27]} 27. Nd4 {[%emt 0:01:58]} Nxc3 {[%emt 0:02:12]} 28. bxc3 {[%emt 0:02:32]} Bxd5 {[%emt 0:00:17]} 29. Rxb6 {[%emt 0:01:04]} Bxg2 {[%emt 0:01:36]} 30. Kxg2 {[%emt 0:02:09]} e5 {[%emt 0:02:08]} 31. Rxb7 {[%emt 0:05:44]} exd4 {[%emt 0:00:48]} 32. Rxc7 {[%emt 0:00:12]} d3 {[%emt 0:02:01]} 33. Rc4 {[%emt 0:04:45]} f5 {[%emt 0:00:17]} 34. a4 {[%emt 0:02:24]} Rd7 {[%emt 0:03:17]} 35. Ba3 {[%emt 0:01:34]} Re8 {[%emt 0:00:24]} 36. Kf2 {[%emt 0:02:59]} Re4 {[%emt 0:00:20]} 37. Rc8+ {[%emt 0:02:13]} Kf7 {[%emt 0:00:01]} 38. Bb4 {[%emt 0:00:48]} Bf6 {[%emt 0:00:36]} 39. a5 {[%emt 0:01:27]} Be7 {[%emt 0:00:16]} 40. Bxe7 {[%emt 0:03:05]} Rexe7 {[%emt 0:02:26]} 41. Rc5 {[%emt 0:39:20]} Re6 {[%emt 0:13:42]} 42. c4 {[%emt 0:00:00]} Rd4 {[%emt 0:02:39]} 43. Rc7+ {[%emt 0:00:00]} Kf6 {[%emt 0:03:24]} 44. Rxh7 {[%emt 0:00:00]} Ra6 {[%emt 0:01:42]} 45. Rc7 {[%emt 0:00:00]} Rxa5 {[%emt 0:00:30]} 46. Rc6+ {[%emt 0:00:00]} Kg7 {[%emt 0:02:33]} 47. Ke3 {[%emt 0:03:27]} Re4+ {[%emt 0:00:55]} 48. Kf3 {[%emt 0:00:26]} Ra3 {[%emt 0:02:48]} 49. Rc7+ {[%emt 0:01:55]} Kf8 {[%emt 0:02:36]} 50. g4 {[%emt 0:00:46]} g5 {[%emt 0:02:23]} 51. gxf5 {[%emt 0:02:01]} Rxf4+ {[%emt 0:00:09]} 52. Ke3 {[%emt 0:00:03]} Rh4 {[%emt 0:01:32]} 53. c5 {[%emt 0:01:11]} Raa4 {[%emt 0:02:15]} 54. Kxd3 {[%emt 0:01:06]} Ra3+ {[%emt 0:00:34]} 55. Kc2 {[%emt 0:00:30]} Ra2+ {[%emt 0:00:13]} 56. Kc1 {[%emt 0:00:33]} Rxd2 {[%emt 0:00:17]} 57. Kxd2 {[%emt 0:00:03]} Rxh2+ {[%emt 0:01:00]} 58. Ke3 {[%emt 0:00:02]} Rh1 {[%emt 0:00:41]} 59. c6 {[%emt 0:00:55]} Rc1 {[%emt 0:00:17]} 60. f6 {[%emt 0:01:20]} g4 {[%emt 0:00:27]} 61. Rc8+ {[%emt 0:00:25]} Kf7 {[%emt 0:00:06]} 62. c7 {[%emt 0:00:03]} g3 {[%emt 0:00:43]} 1-0